[Event "Dutch Open 2022"]
[Site "Dieren"]
[Date "2022.08.02"]
[Round "7.14"]
[White "Labruyere, Roger"]
[Black "Vos, Tjark"]
[Result "1/2-1/2"]
[ECO "B52"]
[WhiteElo "2070"]
[BlackElo "2224"]
[Annotator "RC"]
[PlyCount "120"]
[EventDate "2022.07.14"]
[EventType "swiss"]
[EventCountry "NED"]
[SourceTitle "playchess.com"]
[Source "ChessBase"]
[SourceQuality "1"]
[TimeControl "40/5400+30:1800+30"]

1. e4 {[%emt 0:00:01]} c5 {[%emt 0:00:07]} 2. Nf3 {[%emt 0:00:04]} d6 {[%emt 0:00:09]} 3. Bb5+ {[%emt 0:00:03]} Bd7 {[%emt 0:01:09]} 4. Bxd7+ {[%emt 0:00:09]} Qxd7 {[%emt 0:00:05]} 5. c4 {[%emt 0:00:06]} g6 {[%emt 0:00:31]} 6. Nc3 {[%emt 0:00:45]} Bg7 {[%emt 0:00:07]} 7. d4 {[%emt 0:00:18]} cxd4 {[%emt 0:00:08]} 8. Nxd4 {[%emt 0:00:05]} Nf6 {[%emt 0:00:15]} 9. f3 {[%emt 0:01:25]} O-O {[%emt 0:00:45]} 10. Be3 {[%emt 0:00:20]} Nc6 {[%emt 0:01:18]} 11. Rc1 {[%emt 0:01:06]} Rfc8 {[%emt 0:01:50]} 12. b3 {[%emt 0:00:17]} Rab8 {[%emt 0:02:43]} 13. O-O {[%emt 0:00:33]} a6 {[%emt 0:05:42]} 14. a4 {[%emt 0:02:50]} Nxd4 {[%emt 0:05:08]} 15. Bxd4 {[%emt 0:00:26]} Qd8 {[%emt 0:00:40]} 16. f4 {[%emt 0:05:37]} Nd7 {[%emt 0:03:34]} 17. Bxg7 {[%emt 0:05:51]} Kxg7 {[%emt 0:03:23]} 18. Kh1 {[%emt 0:01:11]} Kg8 {[%emt 0:16:23]} 19. Rf3 {[%emt 0:01:43]} Nf6 {[%emt 0:13:29]} 20. Rd3 {[%emt 0:01:10]} Qa5 {[%emt 0:01:52]} 21. Qe2 {[%emt 0:01:00]} Qh5 {[%emt 0:11:59]} 22. Qxh5 {[%emt 0:01:11]} Nxh5 {[%emt 0:00:06]} 23. Nd5 {[%emt 0:00:15]} Kf8 {[%emt 0:02:27]} 24. g4 {[%emt 0:00:03]} Ng7 {[%emt 0:00:29]} 25. Nb6 {[%emt 0:00:16]} Rc7 {[%emt 0:01:17]} 26. e5 {[%emt 0:02:02]} Ne6 {[%emt 0:08:57]} 27. exd6 {[%emt 0:02:11]} exd6 {[%emt 0:00:03]} 28. Rxd6 {[%emt 0:00:15]} Nxf4 {[%emt 0:05:17]} 29. Rf1 {[%emt 0:05:26]} g5 {[%emt 0:00:22]} 30. h4 {[%emt 0:00:31]} Re8 {[%emt 0:02:47]} 31. hxg5 {[%emt 0:00:39]} Ne6 {[%emt 0:04:23]} 32. Nd5 {[%emt 0:01:22]} Rc6 {[%emt 0:00:54]} 33. Rd7 {[%emt 0:02:15]} Nxg5 {[%emt 0:00:11]} 34. Nf6 {[%emt 0:02:06]} Ree6 {[%emt 0:03:07]} 35. Nxh7+ {[%emt 0:03:01]} Ke8 {[%emt 0:01:20]} 36. Nxg5 {[%emt 0:00:06]} Rh6+ {[%emt 0:00:05]} 37. Kg2 {[%emt 0:00:03]} Kxd7 {[%emt 0:00:05]} 38. Rxf7+ {[%emt 0:00:19]} Kc8 {[%emt 0:00:11]} 39. Ne4 {[%emt 0:01:36]} Rb6 {[%emt 0:03:33]} 40. Rf3 {[%emt 0:01:23]} Kd7 {[%emt 0:01:18]} 41. Kg3 {[%emt 0:30:54]} Rh1 {[%emt 0:05:21]} 42. g5 {[%emt 0:00:00]} Ke7 {[%emt 0:01:07]} 43. Nc3 {[%emt 0:00:00]} Rg6 {[%emt 0:01:31]} 44. Kf4 {[%emt 0:00:00]} Kf7 {[%emt 0:07:27]} 45. Ne4 {[%emt 0:00:00]} Kg7 {[%emt 0:00:53]} 46. Rd3 {[%emt 0:00:00]} Re6 {[%emt 0:01:06]} 47. Ng3 {[%emt 0:00:00]} Rh4+ {[%emt 0:03:19]} 48. Kf5 {[%emt 0:00:00]} Re7 {[%emt 0:00:44]} 49. g6 {[%emt 0:00:00]} Rh2 {[%emt 0:03:30]} 50. Rd6 {[%emt 0:02:43]} Rf2+ {[%emt 0:06:06]} 51. Kg4 {[%emt 0:00:38]} Re5 {[%emt 0:02:20]} 52. Rb6 {[%emt 0:07:12]} Kh6 {[%emt 0:00:52]} 53. g7+ {[%emt 0:00:19]} Kxg7 {[%emt 0:00:06]} 54. Rxb7+ {[%emt 0:00:05]} Kf8 {[%emt 0:00:55]} 55. b4 {[%emt 0:10:53]} Re3 {[%emt 0:01:50]} 56. Nf5 {[%emt 0:09:03]} Re4+ {[%emt 0:00:10]} 57. Kg5 {[%emt 0:00:04]} Re5 {[%emt 0:00:35]} 58. Rb8+ {[%emt 0:00:03]} Kf7 {[%emt 0:00:08]} 59. Rb7+ {[%emt 0:00:02]} Ke8 {[%emt 0:00:35]} 60. Rb8+ {[%emt 0:00:08]} Kf7 {[%emt 0:01:24]} 1/2-1/2

[Event "Dutch Open 2022"]
[Site "Dieren"]
[Date "2022.08.02"]
[Round "7.15"]
[White "De Boer, Bas"]
[Black "Vogel, Jaap"]
[Result "1/2-1/2"]
[ECO "E11"]
[WhiteElo "2136"]
[BlackElo "2147"]
[Annotator "NA RC"]
[PlyCount "74"]
[EventDate "2022.07.14"]
[EventType "swiss"]
[EventCountry "NED"]
[SourceTitle "playchess.com"]
[Source "ChessBase"]
[SourceQuality "1"]
[TimeControl "40/5400+30:1800+30"]

1. d4 {[%emt 0:00:04]} e6 {[%emt 0:00:23]} 2. c4 {[%emt 0:00:08]} d5 {[%emt 0:00:18]} 3. Nf3 {[%emt 0:00:44]} c6 {[%emt 0:00:13]} 4. g3 {[%emt 0:01:52]} Bb4+ {[%emt 0:03:25]} 5. Bd2 {[%emt 0:00:30]} Be7 {[%emt 0:00:35]} 6. Qc2 {[%emt 0:02:15]} Nf6 {[%emt 0:01:24]} 7. Bg2 {[%emt 0:00:12]} Nbd7 {[%emt 0:00:16]} 8. O-O {[%emt 0:02:42]} b6 {[%emt 0:10:37]} 9. Nc3 {[%emt 0:08:57]} Ba6 {[%emt 0:09:56]} 10. cxd5 {[%emt 0:01:43]} cxd5 {[%emt 0:14:52]} 11. Bf4 {[%emt 0:05:32]} O-O {[%emt 0:05:14]} 12. Qa4 {[%emt 0:00:53]} Qc8 {[%emt 0:09:47]} 13. Rfc1 {[%emt 0:05:15]} Qb7 {[%emt 0:03:11]} 14. e4 {[%emt 0:06:37]} Rac8 {[%emt 0:03:51]} 15. Ne5 {[%emt 0:06:49]} b5 {[%emt 0:04:20]} 16. Qd1 {[%emt 0:08:11]} b4 {[%emt 0:01:29]} 17. exd5 {[%emt 0:02:51]} exd5 {[%emt 0:01:49]} 18. Na4 {[%emt 0:02:58]} Rxc1 {[%emt 0:05:48]} 19. Rxc1 {[%emt 0:00:04]} Rc8 {[%emt 0:00:10]} 20. Nxd7 {[%emt 0:00:42]} Qxd7 {[%emt 0:06:03]} 21. Nc5 {[%emt 0:00:19]} Qb5 {[%emt 0:03:14]} 22. Bg5 {[%emt 0:12:32]} Bxc5 {[%emt 0:06:03]} 23. dxc5 {[%emt 0:00:12]} Rxc5 {[%emt 0:00:18]} 24. Rxc5 {[%emt 0:00:22]} Qxc5 {[%emt 0:00:04]} 25. Bxf6 {[%emt 0:00:07]} gxf6 {[%emt 0:00:10]} 26. Bxd5 {[%emt 0:00:13]} Kf8 {[%emt 0:03:41]} 27. Be4 {[%emt 0:03:04]} h6 {[%emt 0:01:42]} 28. h4 {[%emt 0:01:25]} Bc8 {[%emt 0:03:19]} 29. Qd2 {[%emt 0:04:14]} Kg7 {[%emt 0:00:13]} 30. Qc2 {[%emt 0:08:10]} Qe7 {[%emt 0:00:32]} 31. Qe2 {[%emt 0:10:10]} Qd6 {[%emt 0:01:04]} 32. Kg2 {[%emt 0:01:57]} Be6 {[%emt 0:00:11]} 33. b3 {[%emt 0:00:27]} Bd5 {[%emt 0:00:47]} 34. Qg4+ {[%emt 0:01:18]} Kf8 {[%emt 0:00:07]} 35. Qc8+ {[%emt 0:01:52]} Kg7 {[%emt 0:00:01]} 36. Qg4+ {[%emt 0:00:26]} Kf8 {[%emt 0:00:05]} 37. Qc8+ {[%emt 0:00:28]} Kg7 {[%emt 0:00:41]} 1/2-1/2

[Event "Dutch Open 2022"]
[Site "Dieren"]
[Date "2022.08.02"]
[Round "7.16"]
[White "Kohler, Aran"]
[Black "Saketh, Pedagandham"]
[Result "1/2-1/2"]
[ECO "A47"]
[WhiteElo "2121"]
[BlackElo "1928"]
[Annotator "NA RC"]
[PlyCount "89"]
[EventDate "2022.07.14"]
[EventType "swiss"]
[EventCountry "NED"]
[SourceTitle "playchess.com"]
[Source "ChessBase"]
[SourceQuality "1"]
[TimeControl "40/5400+30:1800+30"]

1. d4 {[%emt 0:00:06]} Nf6 {[%emt 0:08:44]} 2. Bg5 {[%emt 0:00:46]} e6 {[%emt 0:00:16]} 3. e3 {[%emt 0:00:32]} c5 {[%emt 0:00:08]} 4. c3 {[%emt 0:00:13]} b6 {[%emt 0:00:22]} 5. Nd2 {[%emt 0:00:09]} Bb7 {[%emt 0:00:02]} 6. Ngf3 {[%emt 0:00:16]} Be7 {[%emt 0:00:05]} 7. Bd3 {[%emt 0:00:04]} d6 {[%emt 0:00:05]} 8. h4 {[%emt 0:04:02]} Nbd7 {[%emt 0:00:17]} 9. Qe2 {[%emt 0:01:05]} cxd4 {[%emt 0:00:06]} 10. exd4 {[%emt 0:00:17]} h6 {[%emt 0:00:07]} 11. Bxf6 {[%emt 0:00:43]} Bxf6 {[%emt 0:00:11]} 12. Be4 {[%emt 0:01:18]} d5 {[%emt 0:00:47]} 13. Bd3 {[%emt 0:00:49]} a6 {[%emt 0:00:27]} 14. O-O-O {[%emt 0:00:22]} b5 {[%emt 0:00:06]} 15. Kb1 {[%emt 0:00:15]} Nb6 {[%emt 0:01:20]} 16. g4 {[%emt 0:02:03]} Nc4 {[%emt 0:00:33]} 17. g5 {[%emt 0:00:13]} Be7 {[%emt 0:01:40]} 18. g6 {[%emt 0:01:33]} O-O {[%emt 0:01:23]} 19. gxf7+ {[%emt 0:00:24]} Kxf7 {[%emt 0:00:43]} 20. Nb3 {[%emt 0:09:30]} Qb6 {[%emt 0:01:47]} 21. Rhg1 {[%emt 0:01:10]} b4 {[%emt 0:02:22]} 22. cxb4 {[%emt 0:02:50]} Bxb4 {[%emt 0:04:45]} 23. Bxc4 {[%emt 0:15:57]} dxc4 {[%emt 0:00:16]} 24. Ne5+ {[%emt 0:00:15]} Kg8 {[%emt 0:00:25]} 25. Nxc4 {[%emt 0:03:31]} Qc6 {[%emt 0:00:59]} 26. Rg4 {[%emt 0:06:13]} h5 {[%emt 0:01:52]} 27. d5 {[%emt 0:11:05]} Qe8 {[%emt 0:08:39]} 28. Re4 {[%emt 0:12:50]} Bxd5 {[%emt 0:00:12]} 29. Rxd5 {[%emt 0:00:15]} exd5 {[%emt 0:00:06]} 30. Rxe8 {[%emt 0:00:04]} Raxe8 {[%emt 0:00:08]} 31. Ne3 {[%emt 0:00:18]} Be7 {[%emt 0:02:08]} 32. Qxh5 {[%emt 0:01:19]} Bf6 {[%emt 0:00:21]} 33. Qxd5+ {[%emt 0:00:08]} Kh8 {[%emt 0:00:04]} 34. Nc5 {[%emt 0:01:35]} Re5 {[%emt 0:00:16]} 35. Qd6 {[%emt 0:02:26]} Rd8 {[%emt 0:01:10]} 36. Nd7 {[%emt 0:06:02]} Re7 {[%emt 0:01:23]} 37. Qxa6 {[%emt 0:02:13]} Rexd7 {[%emt 0:00:16]} 38. a4 {[%emt 0:02:41]} Rd2 {[%emt 0:12:29]} 39. Nc4 {[%emt 0:00:10]} Rxf2 {[%emt 0:00:11]} 40. Qb6 {[%emt 0:00:39]} Rd4 {[%emt 0:04:41]} 41. Qc5 {[%emt 0:34:13]} Rff4 {[%emt 0:38:50]} 42. Qh5+ {[%emt 0:01:04]} Kg8 {[%emt 0:00:09]} 43. Qe8+ {[%emt 0:00:21]} Kh7 {[%emt 0:00:05]} 44. Qh5+ {[%emt 0:09:51]} Kg8 {[%emt 0:00:42]} 45. Qe8+ {[%emt 0:00:00]} 1/2-1/2

[Event "Dutch Open 2022"]
[Site "Dieren"]
[Date "2022.08.03"]
[Round "8.1"]
[White "Lahaye, Rick"]
[Black "Domalchuk-Jonasson, Aleksandr"]
[Result "1/2-1/2"]
[ECO "C00"]
[WhiteElo "2417"]
[BlackElo "2244"]
[Annotator "TA"]
[PlyCount "80"]
[EventDate "2022.07.14"]
[EventType "swiss"]
[EventCountry "NED"]
[SourceTitle "playchess.com"]
[Source "ChessBase"]
[SourceQuality "1"]
[TimeControl "40/5400+30:1800+30"]

{[%evp 20,80,-9,-3,0,0,15,0,20,8,26,25,33,28,40,0,0,0,44,0,0,-11,-19,-31,30,-13,0,-63,14,13,12,8,14,4,14,0,3,0,13,0,2,0,23,0,0,8,6,3,10,0,0,0,0,0,0,0,0,0,0,0,0,0,0]} 1. g3 {[%emt 0:00:04]} d5 {[%emt 0:00:42]} 2. Bg2 {[%emt 0:00:11]} Nf6 {[%emt 0:00:24]} 3. d3 {[%emt 1:31:45]} c5 {[%emt 0:03:37]} 4. Nf3 {[%emt 0:00:00]} Nc6 {[%emt 0:00:40]} 5. O-O {[%emt 0:00:00]} e6 {[%emt 0:03:28]} 6. Nbd2 {[%emt 0:00:00]} Be7 {[%emt 0:02:28]} 7. e4 {[%emt 0:00:00]} b6 {[%emt 0:01:24]} 8. Re1 {[%emt 0:00:00]} Bb7 {[%emt 0:00:34]} 9. c3 {[%emt 0:00:00]} Qc7 {[%emt 0:00:45]} 10. a3 {[%emt 0:00:00]} dxe4 {[%emt 0:02:45]} 11. dxe4 {[%emt 0:00:00]} O-O {[%emt 0:00:22] C00: French: Unusual White 2nd moves.} 12. Nc4 {[%emt 0:00:00]} Rfd8 {[%emt 0:05:50]} 13. Qb3 {[%emt 0:00:00]} h6 {[%emt 0:01:01] [#]} 14. Bf4 $146 {[%emt 0:00:00]} ({Predecessor:} 14. a4 Ba6 15. Bf4 Bxc4 16. Qxc4 e5 17. Be3 Na5 18. Qe2 Ng4 19. c4 Qd7 20. Bh3 {1-0 (60) Roshka,Y (2497)-Domalchuk Jonasson,A (2244) Ceske Budejovice 2022}) 14... Qd7 {[%emt 0:05:03]} 15. Rad1 {[%emt 0:00:00]} Qe8 {[%emt 0:01:49]} 16. Nfd2 {[%emt 0:00:00]} (16. Bd6 {is more complex.} Nxe4 17. Rxe4 Na5 18. Nxa5 Bxe4 19. Bxe7 Qxe7 20. Nc4) 16... Qf8 {[%emt 0:35:08]} 17. h3 {[%emt 0:00:00]} g5 {[%emt 0:07:17]} 18. Be3 {[%emt 0:00:00]} Qg7 {[%emt 0:00:29]} 19. a4 {[%emt 0:00:00]} Rab8 {[%emt 0:05:37]} 20. Nf1 {[%emt 0:00:00]} Ba6 {[%emt 0:04:28]} 21. Bc1 {[%emt 0:00:00]} Kh8 {[%emt 0:04:43]} (21... Nd7 $15) 22. Nfe3 {[%emt 0:00:00]} (22. e5 $5 {[%cal Re5f6]} Nd5 23. Nfe3 $14) 22... Nd7 {[%emt 0:01:46] Inhibits e5.} 23. Ng4 {[%emt 0:00:00]} (23. Bf1 $11) 23... Nde5 {[%emt 0:02:53]} (23... h5 $15 24. Nge3 Nde5) 24. Ncxe5 $11 {[%emt 0:00:00]} Nxe5 {[%emt 0:00:05]} 25. Nxe5 {[%emt 0:00:00]} Qxe5 {[%emt 0:00:04]} 26. Qc2 {[%emt 0:00:00]} Bb7 {[%emt 0:05:02]} 27. h4 {[%emt 0:00:00]} Kg8 {[%emt 0:00:53]} ({But not} 27... gxh4 28. Bf4 Qh5 29. Bxb8 Rxb8 30. Rd7 hxg3 31. Rxe7 $16) 28. Qe2 {[%emt 0:00:00]} Qg7 {[%emt 0:01:13]} 29. hxg5 {[%emt 0:00:00]} hxg5 {[%emt 0:00:14]} 30. Qb5 {[%emt 0:00:00]} Qf8 {[%emt 0:01:09]} 31. e5 {[%emt 0:00:00]} Bxg2 {[%emt 0:02:05] The position is equal.} 32. Kxg2 {[%emt 0:00:00]} Rxd1 {[%emt 0:00:10]} 33. Rxd1 {[%emt 0:00:00]} Rd8 {[%emt 0:00:06]} 34. Rd7 {[%emt 0:00:00]} Rxd7 {[%emt 0:00:42]} 35. Qxd7 {[%emt 0:00:00][%mdl 4096] Endgame KQB-KQB} Qa8+ {[%emt 0:00:23]} 36. Kg1 {[%emt 0:00:00]} Kf8 {[%emt 0:00:38]} 37. Be3 {[%emt 0:00:00]} Qe4 {[%emt 0:01:01]} 38. Qxa7 {[%emt 0:00:00]} Qb1+ {[%emt 0:02:32]} 39. Kh2 {[%emt 0:00:00]} Qh7+ {[%emt 0:00:00]} (39... Qxb2 $2 40. Qb8+ Kg7 41. a5 $18) 40. Kg2 {[%emt 0:00:00] [#] Strongly threatening Qa8+.} Qe4+ {[%emt 0:00:00] Weighted Error Value: White=0.13 (very precise) /Black=0.15 (very precise)} 1/2-1/2

[Event "Dutch Open 2022"]
[Site "Dieren"]
[Date "2022.08.03"]
[Round "8.2"]
[White "Balaji Sekar"]
[Black "Van Roon, Sjoerd"]
[Result "1-0"]
[ECO "B45"]
[WhiteElo "1189"]
[BlackElo "2310"]
[Annotator "TA"]
[PlyCount "107"]
[EventDate "2022.07.14"]
[EventType "swiss"]
[EventCountry "NED"]
[SourceTitle "playchess.com"]
[Source "ChessBase"]
[SourceQuality "1"]
[TimeControl "40/5400+30:1800+30"]

{[%evp 11,107,-2,19,16,19,4,19,8,38,39,37,34,45,31,43,15,12,8,22,16,31,14,28,28,26,14,18,17,51,47,87,81,75,91,110,107,104,93,111,100,105,86,127,120,116,16,168,95,149,104,256,250,258,258,256,251,242,231,275,265,262,271,307,292,316,329,314,310,314,293,236,148,148,148,256,256,256,166,374,403,301,301,968,961,961,961,961,779,4839,3983,29973,29974,29973,29972,29980,29981,29985,29985]} 1. e4 {[%emt 0:00:04]} c5 {[%emt 0:00:03]} 2. Nf3 {[%emt 0:00:08]} e6 {[%emt 0:00:03]} 3. d4 {[%emt 0:00:09]} cxd4 {[%emt 0:00:02]} 4. Nxd4 {[%emt 0:00:08]} Nf6 {[%emt 0:00:05]} 5. Nc3 {[%emt 0:00:07]} Nc6 {[%emt 0:00:03]} 6. a3 {[%emt 0:02:09]} d5 {[%emt 0:05:13]} (6... Be7 {seems wilder.} 7. Be2 d5 8. exd5 Nxd5 9. Nxd5 Qxd5 10. Be3 O-O) 7. exd5 {[%emt 0:00:35] B45: Sicilian Four Knights.} (7. Bb5 {feels hotter.} Bd7 8. exd5 exd5 9. O-O) 7... Nxd5 {[%emt 0:00:26]} (7... exd5 {is interesting.} 8. Bb5 Bd7 9. O-O Be7) 8. Nxd5 {[%emt 0:00:13]} (8. Qd3 {with more complications.} Nxd4 9. Qxd4 Nxc3 10. Qxc3 Bd7 11. Bd3) 8... Qxd5 {[%emt 0:00:44]} 9. Nxc6 {[%emt 0:00:11] The position is equal.} Qxd1+ {[%emt 0:06:45]} 10. Kxd1 {[%emt 0:00:09]} bxc6 {[%emt 0:00:03]} 11. Be3 {[%emt 0:00:11] [#]} c5 $146 {[%emt 0:02:45]} ({Predecessor:} 11... Bb7 12. Bd3 O-O-O 13. f3 c5 14. Ke2 Bd6 15. Rad1 Kc7 16. g3 h5 17. Rd2 a6 {0-1 (72) Jahn,F (1766)-Vuckovic,Z (2098) Walldorf 2017}) 12. Bb5+ {[%emt 0:35:49]} Bd7 {[%emt 0:00:34]} 13. Bxd7+ {[%emt 0:02:22]} Kxd7 {[%emt 0:00:07]} 14. Kd2 {[%emt 0:00:12]} a5 {[%emt 0:18:33]} 15. a4 {[%emt 0:12:19]} Bd6 {[%emt 0:02:43]} 16. c3 {[%emt 0:03:22]} f5 {[%emt 0:04:17] Strongly threatening ...f4.} 17. Kd3 {[%emt 0:04:00]} Rab8 {[%emt 0:06:31]} 18. Rab1 {[%emt 0:00:08]} Kc6 {[%emt 0:01:59]} 19. Kc4 {[%emt 0:03:26]} Rb7 {[%emt 0:05:32]} 20. Rhd1 {[%emt 0:04:45]} g5 {[%emt 0:04:07]} 21. Rd3 {[%emt 0:04:08]} f4 {[%emt 0:05:44] [#]} 22. Rbd1 $1 {[%emt 0:00:16]} Be7 {[%emt 0:03:26]} (22... Bb8 23. Bc1) 23. Bc1 {[%emt 0:00:02] Hoping for Re1.} Re8 {[%emt 0:04:58]} 24. Rh3 {[%emt 0:04:22]} Bd6 {[%emt 0:01:44]} 25. Rh5 {[%emt 0:07:07]} Rg7 {[%emt 0:02:47]} 26. Kd3 {[%emt 0:00:18]} Rf8 {[%emt 0:02:30]} 27. Rh6 {[%emt 0:00:50]} Re7 {[%emt 0:00:41]} 28. Ke4 {[%emt 0:01:45]} (28. Re1 $16) 28... Kd7 $2 {[%emt 0:02:04]} (28... Rf5 $1 $11 {and Black stays safe.}) 29. Kf3 {[%emt 0:04:01]} (29. g4 $18) 29... Rg7 {[%emt 0:02:42]} (29... Kc6 $142) 30. h3 {[%emt 0:02:07][%cal Ob2b4]} Rf5 $2 {[%emt 0:00:44]} (30... Ke7 $16 {was called for.}) 31. c4 $1 $18 {[%emt 0:00:40]} Ke7 {[%emt 0:01:50]} 32. Bd2 {[%emt 0:00:09]} Rf6 {[%emt 0:01:35]} 33. Bc3 {[%emt 0:06:19]} Rxh6 {[%emt 0:00:41]} 34. Bxg7 {[%emt 0:00:02][%mdl 4096] Endgame KRB-KRB} Rg6 {[%emt 0:00:06] [#]} 35. Bf8+ {[%emt 0:00:10][%mdl 512]} Kxf8 {[%emt 0:00:07]} 36. Rxd6 {[%emt 0:00:04] Threatens to win with Rc6. KR-KR} Rg7 {[%emt 0:05:26]} 37. Rb6 {[%emt 0:03:12] Inhibits Rb7.} (37. Rxe6 Rb7 $16) 37... Rd7 {[%emt 0:04:38] [#]} 38. Rb5 $1 {[%emt 0:00:11]} (38. Rxe6 Rb7 39. Rc6 Rb3+ 40. Ke4 Rxb2 $16) 38... Rd2 {[%emt 0:01:05]} 39. Rxc5 {[%emt 0:00:51]} (39. Rxa5 Rxb2 40. Rxc5 h6 $16) 39... h6 {[%emt 0:01:31]} 40. Rxa5 {[%emt 0:02:31]} Rxb2 {[%emt 0:00:06]} 41. h4 {[%emt 0:09:15]} gxh4 {[%emt 0:18:54]} 42. Rh5 {[%emt 0:14:17]} (42. Kxf4 $6 Rxf2+ 43. Kg4 Rxg2+ 44. Kxh4 Ke7 $11) 42... Rb4 {[%emt 0:00:34]} (42... Ke7 $16 {might work better.} 43. Rxh4 (43. Rxh6 Ra2 $16) 43... Ra2) 43. Rxh6 {[%emt 0:02:10]} e5 {[%emt 0:01:07]} 44. Re6 {[%emt 0:00:55]} h3 $2 {[%emt 0:01:54]} (44... Rxa4 {was worth a try.} 45. Rxe5 (45. c5 Ra3+ 46. Ke4 Ra2 $11) 45... Rxc4) 45. gxh3 {[%emt 0:00:01][%cal Bg2h3,Bh3h4][%mdl 32]} Rxc4 {[%emt 0:00:07]} 46. a5 {[%emt 0:01:29][%cal Ba4a5,Ba5a6][%mdl 32]} ({Less strong is} 46. Rxe5 Rxa4 47. h4 Kg7 $16) 46... Rc5 $2 {[%emt 0:00:17]} (46... Rc3+ 47. Kg4 Rc2 48. Rxe5 Rxf2) 47. a6 {[%emt 0:00:09]} Kf7 {[%emt 0:00:45]} 48. Rb6 {[%emt 0:00:07]} ({Not} 48. a7 Ra5 49. Rxe5 Rxa7 50. Kxf4 Kg6 51. Rg5+ Kf7 $16) 48... Rc2 {[%emt 0:02:50]} 49. h4 {[%emt 0:02:03]} e4+ {[%emt 0:03:57]} 50. Kxf4 {[%emt 0:00:32]} Rxf2+ {[%emt 0:00:07]} 51. Kxe4 {[%emt 0:00:04] White mates.} Rh2 {[%emt 0:00:54]} 52. Kd5 {[%emt 0:00:17]} Rxh4 {[%emt 0:00:31]} 53. Kc6 {[%emt 0:00:23]} Ke6 {[%emt 0:02:24]} 54. a7 {[%emt 0:00:11] Weighted Error Value: White=0.13 (very precise) /Black=0.44} 1-0